[Event "Early-Titled-Tuesday-Blitz-February-13-2024"]
[Site "Chess.com"]
[Date "2024.02.13"]
[Round "6"]
[White "Timerkhanov"]
[Black "Irishchessman16"]
[Result "0-1"]
[WhiteElo "2650"]
[BlackElo "2536"]
[TimeControl "180+1"]
[EndTime "9:10:10 PST"]
[Termination "Irishchessman16 won by resignation"]

1. d4 {[%clk 0:03:00.9]} 1... Nf6 {[%clk 0:02:59.6]} 2. Bg5 {[%clk 0:03:00.1]}
2... c5 {[%clk 0:02:57.3]} 3. d5 {[%clk 0:02:58.5]} 3... d6 {[%clk 0:02:55.9]}
4. Nc3 {[%clk 0:02:56.1]} 4... g6 {[%clk 0:02:53.5]} 5. e4 {[%clk 0:02:54.9]}
5... Bg7 {[%clk 0:02:51.1]} 6. Qd2 {[%clk 0:02:51.4]} 6... O-O {[%clk
0:02:45.1]} 7. Bh6 {[%clk 0:02:50.5]} 7... Bxh6 {[%clk 0:02:23]} 8. Qxh6 {[%clk
0:02:51.4]} 8... e6 {[%clk 0:02:22.6]} 9. dxe6 {[%clk 0:02:44.2]} 9... fxe6
{[%clk 0:02:07.1]} 10. f3 {[%clk 0:02:43.4]} 10... Nc6 {[%clk 0:01:58.2]} 11.
O-O-O {[%clk 0:02:39.1]} 11... Qe7 {[%clk 0:01:32.9]} 12. Nh3 {[%clk 0:02:35]}
12... Nd4 {[%clk 0:01:21.8]} 13. Ng5 {[%clk 0:02:33]} 13... Qg7 {[%clk
0:01:19.2]} 14. Qxg7+ {[%clk 0:02:16]} 14... Kxg7 {[%clk 0:01:20.1]} 15. Ne2
{[%clk 0:02:11.7]} 15... e5 {[%clk 0:01:14.3]} 16. c3 {[%clk 0:02:10.7]} 16...
Nxe2+ {[%clk 0:00:40.8]} 17. Bxe2 {[%clk 0:02:11.6]} 17... h6 {[%clk 0:00:40.4]}
18. Nh3 {[%clk 0:02:11.5]} 18... Bxh3 {[%clk 0:00:40.5]} 19. gxh3 {[%clk
0:02:12.4]} 19... Rad8 {[%clk 0:00:33.6]} 20. Rd2 {[%clk 0:02:12.3]} 20... d5
{[%clk 0:00:29.4]} 21. exd5 {[%clk 0:02:02.7]} 21... Ne8 {[%clk 0:00:29]} 22. c4
{[%clk 0:01:58.1]} 22... Nd6 {[%clk 0:00:28.9]} 23. b3 {[%clk 0:01:56.9]} 23...
Rf4 {[%clk 0:00:28.4]} 24. Bd1 {[%clk 0:01:56.5]} 24... Rh4 {[%clk 0:00:25.9]}
25. Re1 {[%clk 0:01:51.3]} 25... Kf6 {[%clk 0:00:21.4]} 26. Rde2 {[%clk
0:01:50.8]} 26... Re8 {[%clk 0:00:20.4]} 27. Bc2 {[%clk 0:01:38.4]} 27... g5
{[%clk 0:00:12.4]} 28. Re3 {[%clk 0:01:30.8]} 28... Rxh3 {[%clk 0:00:12.3]} 29.
f4 {[%clk 0:01:30.4]} 29... Rxe3 {[%clk 0:00:12.2]} 30. fxg5+ {[%clk 0:01:30.1]}
30... hxg5 {[%clk 0:00:11.6]} 31. Rxe3 {[%clk 0:01:30.8]} 31... e4 {[%clk
0:00:11]} 32. Kd2 {[%clk 0:01:20.9]} 32... Ke5 {[%clk 0:00:10]} 33. Rg3 {[%clk
0:01:19.3]} 33... Kf4 {[%clk 0:00:08.4]} 34. Bd1 {[%clk 0:01:16.9]} 34... e3+
{[%clk 0:00:07.5]} 35. Kd3 {[%clk 0:01:17.4]} 35... Ne4 {[%clk 0:00:05.8]} 36.
Rg4+ {[%clk 0:01:17.6]} 36... Kf5 {[%clk 0:00:05.7]} 37. Rg2 {[%clk 0:01:00.9]}
37... Nf2+ {[%clk 0:00:05.6]} 38. Ke2 {[%clk 0:01:01.4]} 38... Nxd1 {[%clk
0:00:03.8]} 39. Kxd1 {[%clk 0:01:02.3]} 39... Kf4 {[%clk 0:00:03.2]} 40. Ke2
{[%clk 0:00:55.1]} 40... g4 {[%clk 0:00:02.3]} 41. Rg3 {[%clk 0:00:53.6]} 41...
Rh8 {[%clk 0:00:02.9]} 42. Rxe3 {[%clk 0:00:52]} 42... Rxh2+ {[%clk 0:00:02.7]}
43. Kd3 {[%clk 0:00:52.4]} 43... Rh3 {[%clk 0:00:03.4]} 0-1

[Event "Early-Titled-Tuesday-Blitz-February-13-2024"]
[Site "Chess.com"]
[Date "2024.02.13"]
[Round "6"]
[White "RamonManon0g"]
[Black "Austen48"]
[Result "0-1"]
[WhiteElo "2381"]
[BlackElo "2247"]
[TimeControl "180+1"]
[EndTime "9:10:10 PST"]
[Termination "Austen48 won by checkmate"]

1. e4 {[%clk 0:03:00.9]} 1... c5 {[%clk 0:02:31.8]} 2. Nf3 {[%clk 0:03:00.7]}
2... e6 {[%clk 0:02:30]} 3. g3 {[%clk 0:03:00.6]} 3... Nc6 {[%clk 0:02:28.4]} 4.
Bg2 {[%clk 0:03:00.5]} 4... d6 {[%clk 0:02:22.1]} 5. O-O {[%clk 0:02:59.8]} 5...
g6 {[%clk 0:02:20.6]} 6. c3 {[%clk 0:02:59.9]} 6... Bg7 {[%clk 0:02:19.1]} 7. d4
{[%clk 0:03:00.6]} 7... cxd4 {[%clk 0:02:18.6]} 8. cxd4 {[%clk 0:03:01.5]} 8...
Nge7 {[%clk 0:02:16.7]} 9. d5 {[%clk 0:03:00.6]} 9... Ne5 {[%clk 0:02:16.1]} 10.
Nxe5 {[%clk 0:02:53.3]} 10... Bxe5 {[%clk 0:02:11.7]} 11. Nc3 {[%clk 0:02:53.9]}
11... O-O {[%clk 0:02:09.3]} 12. Bh6 {[%clk 0:02:51.6]} 12... Bg7 {[%clk
0:02:07.8]} 13. Bxg7 {[%clk 0:02:50.9]} 13... Kxg7 {[%clk 0:02:07.7]} 14. dxe6
{[%clk 0:02:48.5]} 14... fxe6 {[%clk 0:01:58.3]} 15. Nb5 {[%clk 0:02:42.5]}
15... d5 {[%clk 0:01:54.9]} 16. Qd4+ {[%clk 0:02:41.7]} 16... Kg8 {[%clk
0:01:50.2]} 17. Nxa7 {[%clk 0:02:28.4]} 17... e5 {[%clk 0:01:38.5]} 18. Qa4
{[%clk 0:02:02.3]} 18... Qb6 {[%clk 0:01:24.2]} 19. Nxc8 {[%clk 0:02:01.7]}
19... Rfxc8 {[%clk 0:01:20.1]} 20. Qd7 {[%clk 0:01:52.7]} 20... Rc7 {[%clk
0:01:14.5]} 21. Qg4 {[%clk 0:01:51.6]} 21... d4 {[%clk 0:01:12.6]} 22. b3 {[%clk
0:01:51.6]} 22... Rc2 {[%clk 0:01:08.7]} 23. a4 {[%clk 0:01:43.5]} 23... Rac8
{[%clk 0:00:57.5]} 24. a5 {[%clk 0:01:40.9]} 24... Qxb3 {[%clk 0:00:56.3]} 25.
Rab1 {[%clk 0:01:38.9]} 25... Qf7 {[%clk 0:00:41.7]} 26. Rxb7 {[%clk 0:01:36.5]}
26... R8c7 {[%clk 0:00:18.2]} 27. a6 {[%clk 0:01:30.7]} 27... Kg7 {[%clk
0:00:18.2]} 28. a7 {[%clk 0:01:26.8]} 28... Rxb7 {[%clk 0:00:15.6]} 29. a8=Q
{[%clk 0:01:27]} 29... Rbb2 {[%clk 0:00:15.2]} 30. Qa5 {[%clk 0:01:19.9]} 30...
Nc6 {[%clk 0:00:14.5]} 31. Qe1 {[%clk 0:01:16.3]} 31... d3 {[%clk 0:00:11.6]}
32. Bf3 {[%clk 0:01:13.9]} 32... h5 {[%clk 0:00:09.2]} 33. Qg5 {[%clk
0:00:53.3]} 33... Qxf3 {[%clk 0:00:09.3]} 34. Qge3 {[%clk 0:00:48.6]} 34... Qf7
{[%clk 0:00:08.5]} 35. Qxd3 {[%clk 0:00:47]} 35... Nd4 {[%clk 0:00:07.5]} 36.
Qee3 {[%clk 0:00:45.5]} 36... Ne2+ {[%clk 0:00:05.5]} 37. Kg2 {[%clk 0:00:44.1]}
37... Nd4 {[%clk 0:00:04.4]} 38. Qg5 {[%clk 0:00:42.2]} 38... Rxf2+ {[%clk
0:00:02]} 39. Kg1 {[%clk 0:00:29.6]} 39... Qf3 {[%clk 0:00:02.1]} 40. Qxe5+
{[%clk 0:00:26]} 40... Kh6 {[%clk 0:00:02.1]} 41. Qxf3 {[%clk 0:00:21.9]} 41...
Nxf3+ {[%clk 0:00:01.2]} 42. Kh1 {[%clk 0:00:20.9]} 42... Rxh2# {[%clk
0:00:01.8]} 0-1

[Event "Early-Titled-Tuesday-Blitz-February-13-2024"]
[Site "Chess.com"]
[Date "2024.02.13"]
[Round "6"]
[White "Blitzking642"]
[Black "arctic_t00"]
[Result "0-1"]
[WhiteElo "2536"]
[BlackElo "2707"]
[TimeControl "180+1"]
[EndTime "9:10:12 PST"]
[Termination "arctic_t00 won by checkmate"]

1. e4 {[%clk 0:03:00.9]} 1... e6 {[%clk 0:02:59.8]} 2. d4 {[%clk 0:03:00.2]}
2... d5 {[%clk 0:03:00.5]} 3. exd5 {[%clk 0:02:59.4]} 3... exd5 {[%clk
0:03:00.7]} 4. Bf4 {[%clk 0:02:58.2]} 4... Nf6 {[%clk 0:02:52.9]} 5. Nc3 {[%clk
0:02:51.8]} 5... Be7 {[%clk 0:02:44.7]} 6. Qd2 {[%clk 0:02:45.7]} 6... O-O
{[%clk 0:02:43.9]} 7. O-O-O {[%clk 0:02:42.4]} 7... c6 {[%clk 0:02:22.9]} 8. f3
{[%clk 0:02:41.2]} 8... b5 {[%clk 0:02:22.5]} 9. Bd3 {[%clk 0:02:30.7]} 9... a5
{[%clk 0:02:21.1]} 10. g4 {[%clk 0:02:29]} 10... a4 {[%clk 0:02:19.8]} 11. Nce2
{[%clk 0:02:23.6]} 11... Na6 {[%clk 0:02:13.2]} 12. Ng3 {[%clk 0:02:15.1]} 12...
Nb4 {[%clk 0:02:12.1]} 13. Kb1 {[%clk 0:02:06.1]} 13... Nxd3 {[%clk 0:02:03.9]}
14. Qxd3 {[%clk 0:02:05.2]} 14... Ne8 {[%clk 0:02:02.5]} 15. h4 {[%clk
0:01:59.4]} 15... Nd6 {[%clk 0:02:00.9]} 16. N1e2 {[%clk 0:01:44]} 16... Nc4
{[%clk 0:02:00.4]} 17. Nf5 {[%clk 0:01:18.2]} 17... a3 {[%clk 0:01:51]} 18. Be5
{[%clk 0:00:35.7]} 18... Nxb2 {[%clk 0:01:43.2]} 19. Qd2 {[%clk 0:00:31.9]}
19... Bxf5 {[%clk 0:01:42]} 20. gxf5 {[%clk 0:00:30.6]} 20... Nxd1 {[%clk
0:01:23.6]} 21. Rxd1 {[%clk 0:00:25.8]} 21... Bf6 {[%clk 0:01:22.4]} 22. Rg1
{[%clk 0:00:25]} 22... Re8 {[%clk 0:01:15.1]} 23. f4 {[%clk 0:00:24.8]} 23...
Kh8 {[%clk 0:01:07.2]} 24. Ng3 {[%clk 0:00:24.7]} 24... Bxe5 {[%clk 0:01:01]}
25. fxe5 {[%clk 0:00:23.7]} 25... Qxh4 {[%clk 0:01:00.2]} 26. f6 {[%clk
0:00:10.8]} 26... gxf6 {[%clk 0:00:52.6]} 27. Nf5 {[%clk 0:00:10.4]} 27... Qh5
{[%clk 0:00:34.9]} 28. Ng7 {[%clk 0:00:07.7]} 28... Rg8 {[%clk 0:00:27.7]} 29.
exf6 {[%clk 0:00:07.9]} 29... Qh4 {[%clk 0:00:26.6]} 30. Rf1 {[%clk 0:00:03.9]}
30... Ra4 {[%clk 0:00:23.3]} 31. c3 {[%clk 0:00:03.6]} 31... Qe4+ {[%clk
0:00:21.7]} 32. Ka1 {[%clk 0:00:03.3]} 32... b4 {[%clk 0:00:21.6]} 33. Qh2
{[%clk 0:00:02.2]} 33... bxc3 {[%clk 0:00:18]} 34. Rh1 {[%clk 0:00:02.4]} 34...
c2 {[%clk 0:00:10.7]} 35. Qh5 {[%clk 0:00:02.1]} 35... Qxd4# {[%clk 0:00:10.3]}
0-1

[Event "Early-Titled-Tuesday-Blitz-February-13-2024"]
[Site "Chess.com"]
[Date "2024.02.13"]
[Round "6"]
[White "GM_dmitrij"]
[Black "Dyadya81"]
[Result "1-0"]
[WhiteElo "3049"]
[BlackElo "2817"]
[TimeControl "180+1"]
[EndTime "9:10:16 PST"]
[Termination "GM_dmitrij won by resignation"]

1. e4 {[%clk 0:03:00.9]} 1... c5 {[%clk 0:02:58.7]} 2. Nf3 {[%clk 0:03:00.9]}
2... Nf6 {[%clk 0:02:58.1]} 3. e5 {[%clk 0:02:57.7]} 3... Nd5 {[%clk 0:02:58]}
4. Nc3 {[%clk 0:02:58.6]} 4... e6 {[%clk 0:02:56.9]} 5. Ne4 {[%clk 0:02:54.2]}
5... Nc6 {[%clk 0:02:56.2]} 6. Bb5 {[%clk 0:02:47.7]} 6... Qc7 {[%clk
0:02:43.1]} 7. Bxc6 {[%clk 0:02:45.5]} 7... Qxc6 {[%clk 0:02:42.6]} 8. O-O
{[%clk 0:02:45.3]} 8... b6 {[%clk 0:02:36]} 9. Re1 {[%clk 0:02:42.2]} 9... Bb7
{[%clk 0:02:34.5]} 10. c4 {[%clk 0:02:42.4]} 10... Nc7 {[%clk 0:02:19.7]} 11. d4
{[%clk 0:02:39]} 11... cxd4 {[%clk 0:02:15.6]} 12. b3 {[%clk 0:02:34.5]} 12...
Na6 {[%clk 0:01:51.4]} 13. Nxd4 {[%clk 0:02:31]} 13... Qc8 {[%clk 0:01:51.1]}
14. Nb5 {[%clk 0:02:17.5]} 14... Bxe4 {[%clk 0:01:49.2]} 15. Rxe4 {[%clk
0:02:18.4]} 15... Qc6 {[%clk 0:01:32.2]} 16. Rd4 {[%clk 0:02:08.8]} 16... Bc5
{[%clk 0:01:15.2]} 17. Nd6+ {[%clk 0:02:08.9]} 17... Bxd6 {[%clk 0:01:02.1]} 18.
Rxd6 {[%clk 0:02:09.8]} 18... Qc8 {[%clk 0:00:58.6]} 19. Qg4 {[%clk 0:02:07.6]}
19... Kf8 {[%clk 0:00:53.1]} 20. Be3 {[%clk 0:01:46.8]} 20... h5 {[%clk
0:00:48.6]} 21. Qe4 {[%clk 0:01:42.6]} 21... Rb8 {[%clk 0:00:43]} 22. Rad1
{[%clk 0:01:41.5]} 22... Rb7 {[%clk 0:00:43.2]} 23. h4 {[%clk 0:01:35.8]} 23...
Nb8 {[%clk 0:00:42.2]} 24. b4 {[%clk 0:01:31.8]} 24... Kg8 {[%clk 0:00:42.3]}
25. b5 {[%clk 0:01:31.8]} 25... Rc7 {[%clk 0:00:27.9]} 26. R1d4 {[%clk
0:01:22.2]} 26... Qb7 {[%clk 0:00:17.8]} 27. Qd3 {[%clk 0:01:16.8]} 27... Qc8
{[%clk 0:00:17.4]} 28. Bg5 {[%clk 0:01:15.4]} 28... Qe8 {[%clk 0:00:14.5]} 29.
a4 {[%clk 0:01:12.4]} 29... Qf8 {[%clk 0:00:14.7]} 30. Bd2 {[%clk 0:00:46.6]}
30... Rc5 {[%clk 0:00:14.8]} 31. Qe4 {[%clk 0:00:43.3]} 31... Rc7 {[%clk
0:00:13]} 32. a5 {[%clk 0:00:42.3]} 32... bxa5 {[%clk 0:00:11.8]} 33. Bxa5
{[%clk 0:00:43.2]} 33... Rc8 {[%clk 0:00:09.4]} 34. Qb7 {[%clk 0:00:42]} 34...
Rh6 {[%clk 0:00:08.8]} 35. Bc7 {[%clk 0:00:37.6]} 35... Rg6 {[%clk 0:00:08]} 36.
c5 {[%clk 0:00:34.7]} 36... Rg4 {[%clk 0:00:05.1]} 37. Rxg4 {[%clk 0:00:34.5]}
37... hxg4 {[%clk 0:00:06]} 38. c6 {[%clk 0:00:35.4]} 38... g3 {[%clk
0:00:06.2]} 39. fxg3 {[%clk 0:00:35.1]} 39... dxc6 {[%clk 0:00:06]} 40. bxc6
{[%clk 0:00:34.5]} 40... Qe7 {[%clk 0:00:05.5]} 41. Qxc8+ {[%clk 0:00:33.4]}
41... Kh7 {[%clk 0:00:04.9]} 42. Qxb8 {[%clk 0:00:31]} 1-0

[Event "Early-Titled-Tuesday-Blitz-February-13-2024"]
[Site "Chess.com"]
[Date "2024.02.13"]
[Round "6"]
[White "Anton_Demchenko"]
[Black "ValentinDragnev"]
[Result "1-0"]
[WhiteElo "2940"]
[BlackElo "2752"]
[TimeControl "180+1"]
[EndTime "9:10:16 PST"]
[Termination "Anton_Demchenko won by resignation"]

1. e4 {[%clk 0:03:00.9]} 1... c6 {[%clk 0:02:56.6]} 2. d4 {[%clk 0:03:00.8]}
2... d5 {[%clk 0:02:57.2]} 3. e5 {[%clk 0:03:01.6]} 3... c5 {[%clk 0:02:56.2]}
4. Nf3 {[%clk 0:03:00.3]} 4... Nc6 {[%clk 0:02:55.2]} 5. dxc5 {[%clk 0:03:00]}
5... e6 {[%clk 0:02:55.8]} 6. Be3 {[%clk 0:02:49.6]} 6... Nh6 {[%clk 0:02:55.2]}
7. c3 {[%clk 0:02:47.5]} 7... Nf5 {[%clk 0:02:55.3]} 8. Bd4 {[%clk 0:02:48.3]}
8... Bd7 {[%clk 0:02:53.3]} 9. Be2 {[%clk 0:01:16.6]} 9... g5 {[%clk 0:02:32.1]}
10. h3 {[%clk 0:01:15.7]} 10... h5 {[%clk 0:02:30.7]} 11. Nbd2 {[%clk
0:00:59.6]} 11... Be7 {[%clk 0:02:19.3]} 12. Nb3 {[%clk 0:00:55.8]} 12... Qc7
{[%clk 0:02:13.9]} 13. Qd2 {[%clk 0:00:50.8]} 13... O-O-O {[%clk 0:02:00.9]} 14.
Nxg5 {[%clk 0:00:46.8]} 14... Bxg5 {[%clk 0:01:30.7]} 15. Qxg5 {[%clk
0:00:47.4]} 15... Rdg8 {[%clk 0:01:31.4]} 16. Qd2 {[%clk 0:00:40.5]} 16... Rxg2
{[%clk 0:01:28.8]} 17. O-O-O {[%clk 0:00:30.3]} 17... Ncxd4 {[%clk 0:01:21.2]}
18. cxd4 {[%clk 0:00:25]} 18... Rxf2 {[%clk 0:01:21.8]} 19. Rdf1 {[%clk
0:00:23.6]} 19... Rg2 {[%clk 0:01:19.7]} 20. Rhg1 {[%clk 0:00:17.7]} 20... Rhg8
{[%clk 0:01:20.1]} 21. Rxg2 {[%clk 0:00:16.6]} 21... Rxg2 {[%clk 0:01:21]} 22.
Qd3 {[%clk 0:00:13.5]} 22... a6 {[%clk 0:00:46.4]} 23. Qf3 {[%clk 0:00:13.5]}
23... Rg3 {[%clk 0:00:43]} 24. Qxh5 {[%clk 0:00:13.4]} 24... Kb8 {[%clk
0:00:37.6]} 25. Qxf7 {[%clk 0:00:12]} 25... Rxb3 {[%clk 0:00:09]} 26. axb3
{[%clk 0:00:11.7]} 26... Nxd4 {[%clk 0:00:08.9]} 27. Qf8+ {[%clk 0:00:12.1]}
27... Ka7 {[%clk 0:00:08.9]} 28. Bd1 {[%clk 0:00:12.9]} 28... Qxe5 {[%clk
0:00:07.9]} 29. Qf4 {[%clk 0:00:11]} 29... Ne2+ {[%clk 0:00:03.2]} 30. Bxe2
{[%clk 0:00:11.6]} 30... Qxe2 {[%clk 0:00:04.1]} 31. Qf2 {[%clk 0:00:10.9]}
31... Qd3 {[%clk 0:00:04.2]} 32. Rd1 {[%clk 0:00:09.2]} 32... Qxb3 {[%clk
0:00:03.3]} 33. c6+ {[%clk 0:00:09.8]} 33... Qb6 {[%clk 0:00:01.4]} 34. Qxb6+
{[%clk 0:00:09.5]} 34... Kxb6 {[%clk 0:00:02.3]} 35. cxd7 {[%clk 0:00:10.4]} 1-0

[Event "Early-Titled-Tuesday-Blitz-February-13-2024"]
[Site "Chess.com"]
[Date "2024.02.13"]
[Round "6"]
[White "djano"]
[Black "amanjazu"]
[Result "1-0"]
[WhiteElo "2664"]
[BlackElo "2515"]
[TimeControl "180+1"]
[EndTime "9:10:17 PST"]
[Termination "djano won by resignation"]

1. e4 {[%clk 0:03:00.9]} 1... Nf6 {[%clk 0:02:59.1]} 2. e5 {[%clk 0:02:58.8]}
2... Nd5 {[%clk 0:02:59.3]} 3. d4 {[%clk 0:02:59.4]} 3... d6 {[%clk 0:02:59.1]}
4. Nf3 {[%clk 0:03:00]} 4... g6 {[%clk 0:02:58.1]} 5. exd6 {[%clk 0:02:56.2]}
5... cxd6 {[%clk 0:02:57.3]} 6. c4 {[%clk 0:02:53.6]} 6... Nb6 {[%clk
0:02:56.6]} 7. a4 {[%clk 0:02:54.1]} 7... a5 {[%clk 0:02:49.9]} 8. Be2 {[%clk
0:02:53.6]} 8... Bg7 {[%clk 0:02:50]} 9. O-O {[%clk 0:02:50.8]} 9... O-O {[%clk
0:02:50.6]} 10. h3 {[%clk 0:02:47.6]} 10... Nc6 {[%clk 0:02:49.2]} 11. Nc3
{[%clk 0:02:47.5]} 11... Bf5 {[%clk 0:02:42.4]} 12. Be3 {[%clk 0:02:43.6]} 12...
Rc8 {[%clk 0:02:38.8]} 13. Qb3 {[%clk 0:02:40.6]} 13... Nb4 {[%clk 0:02:27.4]}
14. Rac1 {[%clk 0:02:38.7]} 14... d5 {[%clk 0:01:47.8]} 15. c5 {[%clk
0:02:34.8]} 15... Nc4 {[%clk 0:01:47.5]} 16. Rfd1 {[%clk 0:02:22.3]} 16... Nxe3
{[%clk 0:01:41.3]} 17. fxe3 {[%clk 0:02:23.2]} 17... Bh6 {[%clk 0:01:40.9]} 18.
Kf2 {[%clk 0:02:18.5]} 18... Rc6 {[%clk 0:01:31.7]} 19. Na2 {[%clk 0:02:15.3]}
19... Re6 {[%clk 0:01:22.3]} 20. Rc3 {[%clk 0:02:03.5]} 20... Nc2 {[%clk
0:00:37.2]} 21. g4 {[%clk 0:01:19.7]} 21... Bxe3+ {[%clk 0:00:32.4]} 22. Kf1
{[%clk 0:01:20.1]} 22... Be4 {[%clk 0:00:30.1]} 23. Rxc2 {[%clk 0:01:15.6]}
23... Bxc2 {[%clk 0:00:27]} 24. Qxc2 {[%clk 0:01:16.5]} 24... f5 {[%clk
0:00:26.1]} 25. g5 {[%clk 0:01:16.9]} 25... Re4 {[%clk 0:00:24]} 26. Nc3 {[%clk
0:01:14.7]} 26... e6 {[%clk 0:00:19.9]} 27. Kg2 {[%clk 0:01:12]} 27... Qe7
{[%clk 0:00:09.3]} 28. Rf1 {[%clk 0:01:10.2]} 28... Bxg5 {[%clk 0:00:04]} 29.
Nxe4 {[%clk 0:01:08]} 29... fxe4 {[%clk 0:00:04.6]} 30. Ne5 {[%clk 0:01:07.9]}
30... Rxf1 {[%clk 0:00:04]} 31. Bxf1 {[%clk 0:01:08.8]} 31... Qf6 {[%clk
0:00:04.4]} 32. Qf2 {[%clk 0:01:08.9]} 32... Bf4 {[%clk 0:00:04]} 33. Ng4 {[%clk
0:01:05.5]} 33... Qg5 {[%clk 0:00:04.5]} 34. Kh1 {[%clk 0:00:37.4]} 34... h5
{[%clk 0:00:04.7]} 35. Nh2 {[%clk 0:00:37.7]} 35... e3 {[%clk 0:00:04.1]} 36.
Qg2 {[%clk 0:00:37.2]} 36... Qg3 {[%clk 0:00:04]} 37. Qxg3 {[%clk 0:00:33.8]}
37... Bxg3 {[%clk 0:00:04.9]} 38. Kg2 {[%clk 0:00:34.5]} 38... Bf2 {[%clk
0:00:04.7]} 39. Nf3 {[%clk 0:00:34.6]} 39... Kf7 {[%clk 0:00:04.6]} 40. Ne5+
{[%clk 0:00:35]} 40... Kf6 {[%clk 0:00:05.5]} 41. c6 {[%clk 0:00:34.7]} 41...
bxc6 {[%clk 0:00:05.4]} 42. Nxc6 {[%clk 0:00:35.6]} 42... Kf5 {[%clk 0:00:05.3]}
43. Bd3+ {[%clk 0:00:35.1]} 43... Kg5 {[%clk 0:00:06]} 44. b4 {[%clk 0:00:34.9]}
44... axb4 {[%clk 0:00:05.9]} 45. Nxb4 {[%clk 0:00:35.8]} 45... Kf6 {[%clk
0:00:05.5]} 46. Nc6 {[%clk 0:00:34]} 46... Be1 {[%clk 0:00:05.8]} 47. a5 {[%clk
0:00:33.2]} 47... Kf7 {[%clk 0:00:04.4]} 48. a6 {[%clk 0:00:33]} 1-0

[Event "Early-Titled-Tuesday-Blitz-February-13-2024"]
[Site "Chess.com"]
[Date "2024.02.13"]
[Round "6"]
[White "isaak2009"]
[Black "Alexander_Donchenko"]
[Result "0-1"]
[WhiteElo "2684"]
[BlackElo "2924"]
[TimeControl "180+1"]
[EndTime "9:10:18 PST"]
[Termination "Alexander_Donchenko won by resignation"]

1. e4 {[%clk 0:02:51.5]} 1... c6 {[%clk 0:02:59.8]} 2. d4 {[%clk 0:02:48.7]}
2... d5 {[%clk 0:03:00.7]} 3. e5 {[%clk 0:02:48.2]} 3... Bf5 {[%clk 0:03:00.7]}
4. Nc3 {[%clk 0:02:48.2]} 4... e6 {[%clk 0:03:00.2]} 5. g4 {[%clk 0:02:48.6]}
5... Bg6 {[%clk 0:03:00.7]} 6. Nge2 {[%clk 0:02:49.5]} 6... c5 {[%clk
0:02:57.6]} 7. h4 {[%clk 0:02:49]} 7... h5 {[%clk 0:02:57.8]} 8. Nf4 {[%clk
0:02:48.9]} 8... Bh7 {[%clk 0:02:58.2]} 9. Nxh5 {[%clk 0:02:49.2]} 9... Nc6
{[%clk 0:02:54.7]} 10. dxc5 {[%clk 0:02:48.5]} 10... Bxc5 {[%clk 0:02:54.3]} 11.
Bg5 {[%clk 0:02:48.7]} 11... Qb6 {[%clk 0:02:51.7]} 12. Bb5 {[%clk 0:02:48.6]}
12... a6 {[%clk 0:02:41.5]} 13. Bxc6+ {[%clk 0:02:45.9]} 13... bxc6 {[%clk
0:02:42.4]} 14. Qf3 {[%clk 0:02:25.2]} 14... Bf8 {[%clk 0:01:59]} 15. O-O-O
{[%clk 0:02:08.9]} 15... Rb8 {[%clk 0:01:54]} 16. b3 {[%clk 0:02:03.9]} 16...
Ne7 {[%clk 0:01:36.4]} 17. Rhe1 {[%clk 0:01:35.4]} 17... Qa5 {[%clk 0:01:23.5]}
18. Na4 {[%clk 0:01:23.6]} 18... Nc8 {[%clk 0:01:11.7]} 19. Bd2 {[%clk
0:00:37.9]} 19... Qd8 {[%clk 0:01:03.4]} 20. Bc3 {[%clk 0:00:22.3]} 20... Bg6
{[%clk 0:00:59.5]} 21. Bd4 {[%clk 0:00:18.1]} 21... Bxh5 {[%clk 0:00:52.8]} 22.
gxh5 {[%clk 0:00:18.1]} 22... Qxh4 {[%clk 0:00:53.5]} 23. Nc5 {[%clk 0:00:13.3]}
23... Qxh5 {[%clk 0:00:50.7]} 24. Qxh5 {[%clk 0:00:12.5]} 24... Rxh5 {[%clk
0:00:51.6]} 25. Nxa6 {[%clk 0:00:12.8]} 25... Rb7 {[%clk 0:00:48.3]} 26. Nc5
{[%clk 0:00:12.9]} 26... Rb4 {[%clk 0:00:45.9]} 27. c3 {[%clk 0:00:12.1]} 27...
Rb8 {[%clk 0:00:44.3]} 28. Kc2 {[%clk 0:00:09.4]} 28... Ne7 {[%clk 0:00:42.5]}
29. Rh1 {[%clk 0:00:08.7]} 29... Rh6 {[%clk 0:00:35.4]} 30. Rxh6 {[%clk
0:00:07.7]} 30... gxh6 {[%clk 0:00:36.3]} 31. Na6 {[%clk 0:00:06.4]} 31... Rb7
{[%clk 0:00:35]} 32. Nc5 {[%clk 0:00:05.8]} 32... Rb8 {[%clk 0:00:35.2]} 33. Na6
{[%clk 0:00:05.8]} 33... Rc8 {[%clk 0:00:35.6]} 34. Bc5 {[%clk 0:00:05.4]} 34...
Ng6 {[%clk 0:00:34.8]} 35. Bxf8 {[%clk 0:00:05.7]} 35... Kxf8 {[%clk 0:00:35.7]}
36. Re1 {[%clk 0:00:05.3]} 36... Ke7 {[%clk 0:00:35.1]} 37. Nc5 {[%clk 0:00:05]}
37... h5 {[%clk 0:00:33.9]} 38. a4 {[%clk 0:00:03.9]} 38... h4 {[%clk
0:00:34.2]} 39. a5 {[%clk 0:00:04.3]} 39... h3 {[%clk 0:00:34.5]} 40. a6 {[%clk
0:00:04.4]} 40... Ra8 {[%clk 0:00:34.8]} 41. Rh1 {[%clk 0:00:02.7]} 41... Nxe5
{[%clk 0:00:35]} 42. Rxh3 {[%clk 0:00:02.5]} 42... Nd7 {[%clk 0:00:35.7]} 43.
Nxd7 {[%clk 0:00:01.7]} 43... Kxd7 {[%clk 0:00:36.6]} 44. Rh7 {[%clk 0:00:02]}
44... Ke7 {[%clk 0:00:37.1]} 45. b4 {[%clk 0:00:02.3]} 45... Rxa6 {[%clk
0:00:37.5]} 46. Kd3 {[%clk 0:00:02.6]} 46... Ra2 {[%clk 0:00:37.1]} 47. Rh2
{[%clk 0:00:02.6]} 47... Kd6 {[%clk 0:00:36.1]} 48. Rg2 {[%clk 0:00:01.7]} 48...
Rb2 {[%clk 0:00:32.6]} 49. Rg3 {[%clk 0:00:02.6]} 49... Rxf2 {[%clk 0:00:31.9]}
0-1